bitfinex-derivatives/quotes_SOLF0:USTF0_20260202
["timestamp","ask_amount","ask_price","bid_price","bid_amount"]
[1770043143288,75.23709961,104.51,104.44,142.8008]
[1770043143581,75.23709961,104.5,104.41,134.2133]
[1770043143780,75.23709961,104.5,104.39,523.36722356]
[1770043143781,75.23709961,104.49,104.39,516.0293]
[1770043143985,83.85949961,104.48,104.4,8.6284]
[1770043144282,75.23709961,104.48,104.4,134.2265]
[1770043144478,75.23709961,104.5,104.42,134.1995]
[1770043144678,75.23709961,104.5,104.43,134.1878]
[1770043144883,75.23709961,104.5,104.43,516.0278]
[1770043145182,75.23709961,104.5,104.43,381.84]
[1770043145583,75.23709961,104.53,104.45,134.1621]
[1770043145782,75.23709961,104.53,104.46,516.0093]
[1770043145982,82.57502317,104.56,104.46,516.0093]
[1770043146183,83.29819855,104.55,104.46,390.4833]
[1770043146581,74.68159855,104.54,104.46,517.11890212]
[1770043146787,74.68159855,104.54,104.46,382.97100212]
[1770043147686,83.29909855,104.54,104.46,391.59460212]
[1770043147889,83.29909855,104.54,104.46,390.4836]
[1770043147890,90.63702211,104.54,104.46,390.4836]
[1770043148184,8.6209,104.5,104.43,1.11100212]
[1770043148383,74.14543142,104.49,104.41,136.39593638]
[1770043148686,74.14543142,104.49,104.42,134.2005]
[1770043148988,82.76583142,104.51,104.43,8.6261]
[1770043149291,74.14543142,104.5,104.41,136.39743638]
[1770043149589,74.14543142,104.47,104.38,10.81323638]
[1770043149783,208.31063142,104.45,104.35,143.81155994]
[1770043149992,74.14543142,104.44,104.35,136.47293638]
[1770043150185,208.32233142,104.44,104.35,2.18333638]
[1770043150483,74.02095678,104.43,104.34,134.2958]
[1770043150685,74.02095678,104.42,104.33,381.84]
[1770043150987,74.02095678,104.4,104.33,381.84]
[1770043151383,74.02095678,104.4,104.34,134.303]
[1770043151582,74.02095678,104.4,104.33,516.1556]
[1770043151787,74.02095678,104.4,104.33,381.84]
[1770043152687,74.02095678,104.4,104.33,390.4742]
[1770043152883,73.56529755,104.43,104.34,134.303]
[1770043153187,80.90322111,104.42,104.33,385.18360412]
[1770043153586,73.56529755,104.41,104.33,381.84]
[1770043153886,73.56529755,104.41,104.33,524.7868]
[1770043155093,73.56529755,104.41,104.33,390.4742]
[1770043155289,73.56529755,104.41,104.33,381.84]
[1770043155885,73.56529755,104.41,104.33,524.7913]
[1770043156292,73.56529755,104.41,104.33,390.4743]
[1770043156694,215.28367543,104.44,104.34,148.46394836]
[1770043156887,72.47247543,104.44,104.36,134.2737]
[1770043157187,72.47247543,104.44,104.36,142.9096]
[1770043157791,72.47247543,104.44,104.35,139.82014836]
[1770043157792,81.09867543,104.44,104.35,5.52924836]
[1770043157985,72.47247543,104.42,104.33,516.1566]
[1770043158395,79.44863008,104.41,104.33,524.7883]
[1770043158592,79.44863008,104.41,104.33,390.4742]
[1770043159095,79.44863008,104.41,104.34,8.6335]
[1770043159293,79.44863008,104.41,104.32,382.08]
[1770043159497,72.10048393,104.4,104.32,382.08]
[1770043159793,72.10048393,104.4,104.32,516.4097]
[1770043160100,88.3839435,104.37,104.28,134.3813]
[1770043160299,72.40419735,104.37,104.3,134.3491]
[1770043160487,79.7523435,104.4,104.31,134.34]
[1770043160691,88.3813435,104.4,104.32,8.6351]
[1770043161089,72.40419735,104.4,104.33,134.317]
[1770043161292,72.40419735,104.4,104.32,134.3172]
[1770043161492,79.7523435,104.38,104.3,134.3491]
[1770043161693,7.34814615,104.4,104.33,8.6344]
[1770043161891,390.0184,104.43,104.35,139.99768909]
[1770043161892,7.34814615,104.43,104.35,139.99768909]
[1770043162110,79.78947955,104.44,104.35,134.2905]
[1770043162392,79.78947955,104.42,104.32,522.09361699]
[1770043162601,79.78947955,104.42,104.33,134.315]
[1770043162800,206.6433334,104.42,104.32,522.09361699]
[1770043163093,7.34814615,104.39,104.32,387.77291699]
[1770043163295,215.3127334,104.39,104.32,382.14]
[1770043163593,88.41987955,104.39,104.32,382.14]
[1770043163794,79.78947955,104.39,104.32,382.14]
[1770043164393,214.03057955,104.39,104.32,382.14]
[1770043164696,79.78947955,104.39,104.32,382.14]
[1770043165093,222.66317955,104.39,104.32,382.14]
[1770043165798,7.34814615,104.35,104.27,134.385]
[1770043166299,7.34814615,104.35,104.27,143.0244]
[1770043166498,7.34814615,104.35,104.25,516.6108]
[1770043166499,7.34814615,104.33,104.25,516.6108]
[1770043166694,7.34814615,104.33,104.25,390.8408]
[1770043166895,141.66724615,104.33,104.25,382.2]
[1770043167193,213.8995827,104.33,104.25,382.2]
[1770043167398,222.5347827,104.33,104.25,382.2]
[1770043167696,213.8722827,104.35,104.25,522.66801068]
[1770043167896,79.5804827,104.37,104.27,140.44361068]
[1770043168296,79.5804827,104.37,104.28,134.38]
[1770043168796,79.74616544,104.39,104.3,140.07504519]
[1770043169298,72.39801929,104.39,104.31,522.32134519]
[1770043169502,79.74616544,104.39,104.31,387.97954519]
[1770043170194,80.17696298,104.37,104.28,4.85795013]
[1770043170388,80.17696298,104.37,104.28,139.23825013]
[1770043170591,223.07656298,104.37,104.28,13.49625013]
[1770043170799,88.80886298,104.37,104.28,13.49625013]
[1770043171297,207.02701683,104.43,104.32,4.85795013]
[1770043171494,214.36756298,104.43,104.33,4.85795013]
[1770043171697,72.82881683,104.4,104.32,382.32]
[1770043172201,7.34814615,104.39,104.32,382.32]
[1770043172800,72.82881683,104.4,104.32,382.32]
[1770043173104,7.34814615,104.39,104.32,382.32]
[1770043173798,223.10933797,104.39,104.3,4.85795013]
[1770043174302,223.10933797,104.39,104.3,13.49475013]
[1770043174303,88.86523797,104.39,104.3,13.49475013]
[1770043174699,88.86523797,104.39,104.3,147.84975013]
[1770043174899,80.23523797,104.39,104.31,142.9785]
[1770043175604,80.23523797,104.39,104.31,8.636]
[1770043175805,7.34814615,104.37,104.3,4.85795013]
[1770043176099,134.215,104.41,104.3,4.85795013]
[1770043176100,7.34814615,104.43,104.34,4.52959197]
[1770043176302,216.59880856,104.43,104.34,4.52959197]
[1770043177001,8.6274,104.42,104.34,4.52959197]
[1770043177399,83.68906241,104.42,104.34,4.52959197]
[1770043177599,75.06166241,104.4,104.31,134.73315897]
[1770043177903,82.40980856,104.37,104.29,134.3655]
[1770043178204,82.40980856,104.39,104.31,134.92791954]
[1770043178401,216.65350856,104.39,104.29,134.3655]
[1770043178600,82.40980856,104.39,104.31,8.6359]
[1770043178801,82.40980856,104.39,104.31,134.92711954]
[1770043178997,82.40980856,104.39,104.31,0.58531954]
[1770043179206,75.06166241,104.39,104.32,8.6352]
[1770043179503,134.1324,104.48,104.36,149.62171954]
[1770043179703,7.34814615,104.48,104.4,134.226]
[1770043180001,7.34814615,104.48,104.39,149.58291954]
[1770043180203,141.50074615,104.46,104.37,382.32]
[1770043180399,7.34814615,104.44,104.36,531.47426791]
[1770043180605,7.34814615,104.44,104.36,397.19596791]
[1770043180801,7.34814615,104.42,104.33,397.19596791]
[1770043181001,7.34814615,104.4,104.3,149.22736791]
[1770043181198,7.34814615,104.38,104.27,149.26386791]
[1770043181398,7.34814615,104.36,104.28,134.3814]
[1770043181603,7.34814615,104.34,104.25,516.7103]
[1770043181805,7.34814615,104.34,104.26,143.0453]
[1770043182002,7.34814615,104.34,104.27,134.3939]
[1770043182204,7.34814615,104.34,104.26,134.4053]
[1770043182403,7.34814615,104.34,104.28,8.6385]
[1770043182600,68.82123887,104.35,104.28,143.0177]
[1770043182807,68.82123887,104.35,104.28,8.6385]
[1770043183105,68.82123887,104.35,104.27,143.033]
[1770043183406,68.82123887,104.35,104.29,134.3669]
[1770043183802,68.82123887,104.35,104.29,8.6376]
[1770043184007,7.34814615,104.34,104.26,150.58015445]
[1770043184510,7.34814615,104.32,104.25,516.7196]
[1770043184706,7.34814615,104.32,104.25,382.3]
[1770043184904,76.16938502,104.32,104.23,23.57974382]
[1770043185205,76.16938502,104.32,104.24,134.4324]
[1770043185401,7.34814615,104.32,104.26,134.4066]
[1770043185605,7.34814615,104.34,104.25,134.4199]
[1770043185801,76.16938502,104.34,104.25,134.4199]
[1770043186006,84.80358502,104.34,104.24,143.0742]
[1770043186399,76.16938502,104.32,104.24,8.6418]
[1770043186905,76.16938502,104.32,104.23,149.38134382]
[1770043187105,210.50058502,104.32,104.23,14.93734382]
[1770043187300,77.45813887,104.31,104.22,8.6436]
[1770043187504,7.34814615,104.3,104.22,134.4582]
[1770043187699,76.16938502,104.31,104.22,151.07614432]
[1770043187901,81.27733192,104.33,104.25,8.6407]
[1770043188104,73.92918577,104.33,104.26,134.4072]
[1770043188311,81.27733192,104.33,104.23,151.06194432]
[1770043188606,7.34814615,104.31,104.24,8.6416]
[1770043188904,7.34814615,104.31,104.23,151.06194432]
[1770043188905,7.34814615,104.31,104.23,151.06254432]
[1770043189105,7.34814615,104.31,104.24,8.6417]
[1770043189500,73.92918577,104.32,104.24,8.6417]
[1770043189501,8.6343,104.34,104.25,134.4196]
[1770043189706,7.34814615,104.36,104.28,134.3803]
[1770043189904,78.93565803,104.38,104.29,134.3666]
[1770043190105,71.58751188,104.37,104.28,134.3803]
[1770043190308,71.58751188,104.37,104.29,134.3677]
[1770043190504,71.58751188,104.4,104.31,134.3408]
[1770043190710,71.58751188,104.4,104.33,134.3163]
[1770043190912,71.58751188,104.4,104.33,8.634]
[1770043191413,7.34814615,104.44,104.37,134.2623]
[1770043191608,78.93565803,104.46,104.37,134.2623]
[1770043191809,213.08615803,104.46,104.36,134.2777]
[1770043192110,78.93565803,104.44,104.35,25.7955121]
[1770043192307,78.93565803,104.44,104.35,160.0856121]
[1770043192512,71.58751188,104.44,104.36,142.9022]
[1770043192713,71.58751188,104.48,104.38,153.12438459]
[1770043192914,213.06105803,104.48,104.38,161.75478459]
[1770043193110,71.58751188,104.48,104.39,134.2385]
[1770043193317,78.93565803,104.51,104.43,134.1878]
[1770043193512,71.58751188,104.51,104.44,134.174]
[1770043193818,71.58751188,104.51,104.41,153.08398459]
[1770043193819,213.03485803,104.5,104.41,18.87318459]
[1770043194119,7.34814615,104.48,104.41,18.87318459]
[1770043194514,7.34814615,104.48,104.39,382.44]
[1770043194813,7.34814615,104.46,104.39,382.44]
[1770043195018,213.08755803,104.46,104.36,134.275]
[1770043195314,71.58751188,104.43,104.35,382.4]
[1770043195511,213.13815803,104.42,104.32,153.48434124]
[1770043195719,7.34814615,104.4,104.32,19.15664124]
[1770043196015,71.58751188,104.39,104.3,525.3254]
[1770043196221,7.34814615,104.4,104.33,134.3133]
[1770043196428,7.34814615,104.42,104.33,134.3133]
[1770043196618,78.93565803,104.42,104.33,134.3133]
[1770043196916,213.14115803,104.42,104.32,157.02057393]
[1770043197117,213.14115803,104.42,104.32,14.05627393]
[1770043197322,213.14115803,104.42,104.32,148.38077393]
[1770043197624,213.13805803,104.42,104.32,157.01617393]
[1770043197923,71.58751188,104.39,104.3,382.34]
[1770043198118,7.34814615,104.4,104.32,149.41508318]
[1770043198320,7.34814615,104.4,104.32,158.05048318]
[1770043198527,213.16445803,104.4,104.32,15.08608318]
[1770043199023,78.93565803,104.4,104.32,15.08608318]
[1770043199421,7.34814615,104.38,104.29,149.45248318]
[1770043199625,7.34814615,104.38,104.29,149.45318318]
[1770043200017,7.34814615,104.38,104.3,148.90217773]
[1770043200227,71.58751188,104.39,104.31,134.3404]
[1770043200525,78.93565803,104.38,104.29,143.005]
[1770043200727,213.19565803,104.38,104.28,14.54977773]
[1770043200925,78.93565803,104.34,104.26,516.7224]
[1770043201130,78.93565803,104.36,104.28,148.92997773]
[1770043201330,7.34814615,104.38,104.3,134.3531]
[1770043201625,141.60194615,104.38,104.29,23.18737773]
[1770043201832,213.21685803,104.36,104.26,531.26687773]
[1770043202133,7.34814615,104.38,104.29,134.3677]
[1770043202329,221.81955803,104.38,104.28,14.54977773]
[1770043202519,7.34814615,104.34,104.26,382.32]
[1770043202721,7.34814615,104.32,104.25,14.77129902]
[1770043202923,221.87535803,104.34,104.25,14.77129902]
[1770043203129,7.34814615,104.35,104.27,134.3933]
[1770043203323,7.34814615,104.35,104.26,149.17669902]
[1770043203324,78.93565803,104.35,104.26,14.77129902]
[1770043203530,213.22865803,104.35,104.26,14.77129902]
[1770043203832,150.30224615,104.33,104.26,14.77129902]
[1770043204026,78.93565803,104.35,104.26,149.17659902]
[1770043204426,134.26,104.38,104.3,134.3556]
[1770043204427,71.58751188,104.38,104.3,134.3556]
[1770043204630,78.93565803,104.41,104.32,134.3294]
[1770043204829,205.81501188,104.4,104.3,151.54030519]
[1770043205127,71.58751188,104.42,104.33,17.18470519]
[1770043205323,71.58751188,104.42,104.3,141.70374615]
[1770043205324,7.34814615,104.39,104.3,151.54030519]
[1770043205524,205.73301188,104.47,104.37,151.44990519]
[1770043205723,213.08115803,104.47,104.37,151.44990519]
[1770043205930,7.34814615,104.43,104.35,142.9184]
[1770043206126,213.12545803,104.43,104.34,17.18470519]
[1770043206325,7.34814615,104.41,104.31,535.30487452]
[1770043206528,141.56344615,104.41,104.32,27.20617452]
[1770043206730,71.58751188,104.39,104.31,382.4]
[1770043207229,78.93565803,104.39,104.31,382.4]
[1770043207427,71.58751188,104.39,104.31,535.30957452]
[1770043207830,134.2019,104.42,104.31,535.30957452]
[1770043207831,221.76505803,104.42,104.32,134.3255]
[1770043208135,221.76505803,104.42,104.31,535.30957452]
[1770043208632,221.76505803,104.42,104.32,142.9642]
[1770043208824,71.58751188,104.42,104.33,134.3152]
[1770043209433,7.34814615,104.41,104.32,143.1721559]
[1770043209726,327.58751188,104.45,104.35,8.8429559]
[1770043209934,213.11225803,104.44,104.35,8.8429559]
[1770043210625,221.73825803,104.44,104.35,8.8429559]
[1770043210931,134.1603,104.46,104.36,141.99017586]
[1770043211129,78.93565803,104.46,104.37,142.8942]
[1770043211329,78.93565803,104.46,104.37,8.6308]
[1770043211532,7.34814615,104.44,104.36,7.71417586]
[1770043211731,71.58751188,104.44,104.35,142.00137586]
[1770043211934,78.93565803,104.47,104.37,141.97357586]
[1770043212230,213.18533486,104.45,104.37,7.71417586]
[1770043212535,71.67278871,104.45,104.37,134.265]
[1770043212831,7.34814615,104.47,104.39,134.2388]
[1770043213032,7.34814615,104.47,104.38,134.2495]
[1770043213429,71.67278871,104.47,104.39,134.2393]
[1770043214237,7.34814615,104.46,104.39,8.6293]
[1770043214740,71.58751188,104.45,104.37,8.6308]
[1770043215034,213.06005803,104.48,104.38,142.88194224]
[1770043215340,7.34814615,104.46,104.38,8.63624224]
[1770043215531,78.93565803,104.46,104.38,8.63624224]
[1770043215730,78.93565803,104.46,104.35,142.92744224]
[1770043215731,7.34814615,104.44,104.35,142.92744224]
[1770043216131,71.58751188,104.45,104.38,134.2524]
[1770043216437,7.34814615,104.46,104.37,143.34836726]
[1770043216629,15.97234615,104.46,104.38,8.6302]
[1770043217233,7.34814615,104.46,104.38,8.6302]
[1770043217530,78.93565803,104.46,104.38,8.6302]
[1770043218330,78.93565803,104.46,104.39,8.6292]
[1770043218529,78.92664452,104.49,104.4,144.90464203]
[1770043218932,15.95923264,104.51,104.41,144.88984203]
[1770043219139,7.33913264,104.51,104.42,144.87984203]
[1770043219350,71.58751188,104.5,104.42,10.68214203]
[1770043219537,78.92664452,104.49,104.41,8.6277]
[1770043219832,7.33913264,104.51,104.43,13.24120496]
[1770043220032,7.33913264,104.51,104.44,8.6252]
[1770043220733,72.05700168,104.55,104.46,8.6236]
[1770043220943,79.39613432,104.55,104.47,147.37740496]
[1770043221136,72.05700168,104.55,104.47,13.24120496]
[1770043221338,72.05700168,104.55,104.45,524.9827]
[1770043221637,79.39613432,104.54,104.45,524.9827]
[1770043221833,79.39613432,104.54,104.46,147.38130496]
[1770043222040,225.25634939,104.57,104.47,156.00100496]
[1770043222238,91.24624939,104.57,104.48,134.1227]
[1770043222441,3.23521507,104.57,104.5,13.76667322]
[1770043222837,10.27851245,104.59,104.48,134.1227]
[1770043222838,1.245e-05,104.59,104.54,144.57425815]
[1770043223037,133.7031,104.81,104.7,0.52546826]
[1770043223335,133.5256,104.95,104.83,267.3516]
[1770043223535,140.94063264,104.89,104.76,202.22853381]
[1770043223737,133.6262,104.87,104.75,515.8699]
[1770043223936,133.6277,104.87,104.75,382.1]
[1770043224141,133.6535,104.85,104.74,7.33913264]
[1770043224444,133.6658,104.84,104.72,133.8105]
[1770043224638,133.6932,104.82,104.72,133.8105]
[1770043224843,133.7087,104.81,104.7,133.8359]
[1770043225043,133.7286,104.79,104.68,202.33453381]
[1770043225243,7.33913264,104.77,104.68,133.8658]
[1770043225440,7.33913264,104.77,104.66,133.8845]
[1770043225441,72.05700168,104.76,104.66,133.8845]
[1770043225642,72.05700168,104.76,104.66,133.8883]
[1770043225643,72.05700168,104.74,104.66,133.8883]
[1770043225840,79.39613432,104.74,104.64,142.5171]
[1770043226036,133.7693,104.76,104.62,450.32873381]
[1770043226037,7.33913264,104.76,104.68,133.8658]
[1770043226339,7.33913264,104.78,104.7,133.8405]
[1770043226539,72.05700168,104.83,104.74,133.7891]
[1770043226843,72.05700168,104.83,104.76,133.7613]
[1770043227040,7.33913264,104.89,104.8,202.18233381]
[1770043227243,133.54,104.94,104.83,133.6657]
[1770043227446,72.05700168,104.94,104.84,133.6563]
[1770043227643,133.5142,104.96,104.86,202.10623381]
[1770043227840,133.5142,104.96,104.86,68.46873381]
[1770043228041,133.539,104.94,104.86,68.46873381]
[1770043228340,133.5264,104.95,104.86,68.46873381]
[1770043228741,103.08029765,104.98,104.87,202.09283381]
[1770043228742,205.54470168,104.98,104.87,202.09283381]
[1770043228945,133.499,104.97,104.87,202.09213381]
[1770043229146,72.05700168,104.98,104.89,133.5965]
[1770043229341,133.4788,104.99,104.89,133.5965]
[1770043229542,133.4112,105.04,104.95,68.46873381]
[1770043229748,133.3974,105.05,104.95,201.98343381]
[1770043229946,133.4228,105.03,104.95,68.46873381]
[1770043230248,164.41629597,105.06,104.95,201.98973381]
[1770043230445,133.3339,105.1,105.01,68.46873381]
[1770043230742,72.05700168,105.13,105.05,133.3907]
[1770043230947,133.3098,105.12,105.03,68.46873381]
[1770043231143,133.3499,105.09,104.99,201.93973381]
[1770043231343,133.3613,105.08,104.99,68.46873381]
[1770043231543,133.3863,105.06,104.99,68.46873381]
[1770043231943,133.4229,105.03,104.95,68.46873381]
[1770043232140,133.4151,105.04,104.95,68.46873381]
[1770043232445,133.4227,105.03,104.92,133.552]
[1770043232645,205.46770168,105.04,104.93,133.5453]
[1770043232943,133.4356,105.02,104.93,68.46873381]
[1770043233152,133.4632,105.0,104.93,68.46873381]
[1770043233349,133.4632,105.0,104.89,133.5958]
[1770043233350,133.4865,104.98,104.89,68.46873381]
[1770043233550,133.5007,104.97,104.89,68.46873381]
[1770043233746,133.4864,104.98,104.89,68.46873381]
[1770043234347,133.512,104.96,104.86,133.6323]
[1770043234548,133.4864,104.98,104.88,133.6082]
[1770043234848,133.4991,104.97,104.87,133.6229]
[1770043235450,133.4991,104.97,104.86,202.10103381]
[1770043235646,205.44910168,105.06,104.95,133.5175]
[1770043235845,72.05700168,105.05,104.96,133.5099]
[1770043236045,72.05700168,105.05,104.92,68.46873381]
[1770043236046,72.05700168,105.02,104.92,202.02913381]
[1770043236244,72.05700168,105.02,104.92,202.02943381]
[1770043236441,398.4331,105.06,104.91,133.5725]
[1770043236442,72.05700168,105.1,104.99,201.93783381]
[1770043236648,133.321,105.11,105.01,133.4461]
[1770043236841,133.321,105.11,104.99,201.93953381]
[1770043236842,133.3344,105.1,104.99,201.93953381]
[1770043237042,133.348,105.09,104.99,449.24873381]
[1770043237248,133.3344,105.1,104.99,201.93583381]
[1770043237449,133.3471,105.09,104.99,68.46873381]
[1770043237649,133.3908,105.06,104.96,380.78]
[1770043237849,133.361,105.08,104.97,133.492]
[1770043238049,133.3742,105.07,104.97,68.46873381]
[1770043238249,133.501,104.97,104.89,68.46873381]
[1770043238450,133.5253,104.95,104.85,202.11773381]
[1770043238650,133.5646,104.92,104.81,582.78053381]
[1770043239051,133.5543,104.93,104.82,133.6786]
[1770043239251,133.5641,104.92,104.81,582.78053381]
[1770043239455,133.5543,104.93,104.82,133.6881]
[1770043239650,133.5628,104.92,104.82,133.6881]
[1770043239850,133.5628,104.92,104.81,582.78053381]
[1770043240055,133.5628,104.92,104.82,133.6873]
[1770043240350,205.59400168,104.94,104.83,133.6706]
[1770043240544,133.5627,104.92,104.82,68.46873381]
[1770043240745,133.6024,104.89,104.78,202.19933381]
[1770043241145,133.5915,104.9,104.79,133.72]
[1770043241346,205.63890168,104.91,104.8,202.17653381]
[1770043241551,205.63890168,104.91,104.81,68.46873381]
[1770043241850,205.63890168,104.91,104.78,142.3302]
[1770043241851,133.5895,104.9,104.78,142.3302]
[1770043242051,133.6191,104.88,104.77,202.22043381]
[1770043242254,31.02329597,104.93,104.83,133.6744]
[1770043242450,133.5624,104.92,104.82,449.02873381]
[1770043242659,133.5755,104.91,104.82,449.02873381]
[1770043243052,133.5755,104.91,104.78,133.7319]
[1770043243053,133.6264,104.87,104.78,68.46873381]
[1770043243356,31.02329597,104.87,104.77,133.7514]
[1770043243655,72.05700168,104.89,104.8,133.7136]
[1770043243852,31.02329597,104.92,104.82,133.6768]
[1770043244054,72.05700168,104.93,104.83,202.14413381]
[1770043244358,133.5631,104.92,104.83,68.46873381]
[1770043244752,667.3537,104.98,104.83,202.13963381]
[1770043244753,205.56500168,104.97,104.83,202.13963381]
[1770043244955,690.61292489,105.05,104.83,202.13963381]
[1770043244956,205.51940168,105.0,104.9,133.5845]
[1770043245151,205.51840168,105.0,104.9,133.5845]
[1770043245355,205.53210168,104.99,104.89,514.159]
[1770043245655,205.53210168,104.99,104.89,380.56]
[1770043245855,133.4883,104.98,104.89,380.56]
[1770043246050,236.55539765,104.99,104.89,380.56]
[1770043246447,236.55379765,104.99,104.89,380.56]
[1770043246651,133.4864,104.98,104.89,380.56]
[1770043246852,205.57180168,104.96,104.86,202.10383381]
[1770043247054,72.05700168,104.96,104.86,202.10383381]
[1770043247261,133.5008,104.97,104.86,210.69473381]
[1770043247462,133.5497,104.93,104.82,202.15043381]
[1770043247661,72.05700168,104.94,104.84,133.6542]
[1770043247856,72.05700168,104.94,104.85,133.6494]
[1770043248050,31.02329597,104.97,104.86,204.68775307]
[1770043248255,31.02329597,105.0,104.9,133.5776]
[1770043248455,133.4556,105.01,104.9,133.5776]
[1770043248456,133.4556,105.01,104.9,204.63215307]
[1770043248656,133.4606,105.0,104.9,71.05455307]
[1770043248852,142.0343,105.01,104.9,204.63695307]
[1770043249057,68.35933328,105.02,104.92,133.5551]
[1770043249457,133.5215,104.96,104.86,71.05455307]
[1770043249658,133.4861,104.98,104.88,204.65765307]
[1770043249958,173.05949597,105.01,104.9,203.29744605]
[1770043250462,133.4638,105.0,104.9,203.29534605]
[1770043250755,475.176184,105.03,104.92,203.27164605]
[1770043250756,142.0135,105.02,104.92,203.27164605]
[1770043250965,239.39947997,105.03,104.93,133.5478]
[1770043251164,133.4362,105.02,104.92,203.27164605]
[1770043251363,247.97667997,105.03,104.92,211.85754605]
[1770043251559,133.4363,105.02,104.92,211.85754605]
[1770043251760,247.97667997,105.03,104.92,211.85754605]
[1770043251761,239.39947997,105.03,104.92,211.85904605]
[1770043251966,239.39947997,105.03,104.93,133.548]
[1770043252168,133.4507,105.01,104.92,69.71164605]
[1770043252368,133.4361,105.02,104.92,203.27224605]
[1770043252561,133.4361,105.02,104.91,133.565]
[1770043252562,133.3551,105.09,104.99,69.71164605]
[1770043252762,208.280584,105.11,104.99,69.71164605]
[1770043252763,208.280584,105.11,105.01,133.4453]
[1770043252965,74.951184,105.11,105.02,133.4309]
[1770043253267,208.273784,105.11,105.01,142.024]
[1770043253565,141.9457,105.07,104.96,133.501]
[1770043253765,141.9457,105.07,104.96,69.71164605]
[1770043253766,133.386,105.06,104.96,69.71164605]
[1770043254269,133.3989,105.05,104.96,69.71164605]
[1770043254562,133.3973,105.05,104.96,69.71164605]
[1770043254768,133.3719,105.07,104.96,69.71164605]
[1770043254769,133.3544,105.09,104.98,203.19504605]
[1770043255067,133.3544,105.09,104.98,211.77804605]
[1770043255262,133.3723,105.07,104.98,69.71164605]
[1770043255469,208.305584,105.09,104.98,211.77584605]
[1770043255661,208.305584,105.09,104.93,544.94489597]
[1770043255662,133.3984,105.05,104.94,203.24404605]
[1770043255869,133.4101,105.04,104.94,203.24404605]
[1770043256264,133.4225,105.03,104.94,69.71164605]
[1770043256567,133.4372,105.02,104.94,69.71164605]
[1770043256762,133.4225,105.03,104.94,69.71164605]
[1770043257562,208.361284,105.04,104.94,69.71164605]
[1770043257761,208.361284,105.04,104.93,522.4265]
[1770043257762,74.951184,105.08,104.99,133.4715]
[1770043257967,133.347,105.09,104.99,133.466]
[1770043258168,216.870484,105.09,104.98,203.19374605]
[1770043258368,133.3852,105.06,104.98,69.71164605]
[1770043258560,133.3744,105.07,104.98,69.71164605]
[1770043259270,133.3744,105.07,104.96,203.22164605]
[1770043259670,133.3744,105.07,104.97,133.4971]
[1770043260067,141.9486,105.07,104.97,8.5818]
[1770043260272,133.4225,105.03,104.93,203.25824605]
[1770043260474,74.951184,105.02,104.92,203.27104605]
[1770043260667,8.5766,105.04,104.93,203.25964605]
[1770043260869,133.4354,105.02,104.93,69.71164605]
[1770043261169,208.380984,105.03,104.93,69.71164605]
[1770043261371,208.380984,105.03,104.91,388.7465]
[1770043261372,133.448,105.01,104.91,388.7465]
[1770043261566,133.4615,105.0,104.91,380.16]
[1770043261770,74.951184,105.03,104.93,203.25814605]
[1770043262170,208.374284,105.03,104.93,203.25814605]
[1770043262369,74.951184,105.03,104.93,69.71164605]
[1770043262573,71.921184,105.02,104.93,133.5461]
[1770043262869,8.5791,105.01,104.92,69.71164605]
[1770043263169,142.0266,105.01,104.92,69.71164605]
[1770043263373,133.4607,105.0,104.92,69.71164605]
[1770043263574,236.38297997,105.02,104.92,69.71164605]
[1770043263575,236.38297997,105.02,104.92,78.29734605]
[1770043263770,205.359684,105.02,104.92,78.29734605]
[1770043263971,290.39242489,105.09,104.91,133.5718]
[1770043263972,8.5731,105.08,104.98,133.4836]
[1770043264171,164.36399597,105.1,105.0,133.4582]
[1770043264568,141.9326,105.08,104.98,211.77604605]
[1770043264769,208.323784,105.07,104.96,513.6495]
[1770043264968,208.335184,105.06,104.96,380.14]
[1770043265274,208.335184,105.06,104.92,31.02329597]
[1770043265275,74.951184,105.02,104.92,203.26654605]
[1770043265468,133.4618,105.0,104.93,6.49649357]
[1770043265778,31.02329597,105.0,104.9,133.5864]
[1770043265973,74.951184,105.01,104.93,133.5481]
[1770043266176,208.348184,105.05,104.96,69.71164605]
[1770043266380,133.4123,105.04,104.93,133.5481]
[1770043266673,133.4123,105.04,104.94,142.1191]
[1770043266878,74.951184,105.05,104.97,133.4951]
[1770043267077,208.349484,105.05,104.95,203.23204605]
[1770043267277,133.4101,105.04,104.95,69.71164605]